[Event "DVM U20 2019"]
[Site "Braunschweig"]
[Date "2019.12.30"]
[Round "7"]
[White "Kaiser, Frederic"]
[Black "Eurich, Alexander"]
[Result "1/2-1/2"]
[ECO "B31"]
[WhiteElo "1901"]
[BlackElo "1741"]
[Annotator "NA"]
[PlyCount "89"]
[EventDate "2019.12.27"]
[EventType "team-tourn"]
[EventRounds "7"]
[EventCountry "GER"]
[SourceTitle "playchess.com"]
[Source "ChessBase"]
[SourceQuality "1"]
[WhiteTeam "Sges Bensheim"]
[BlackTeam "SF HN-Biberach"]
[TimeControl "40/5400+30:1800+30"]

1. e4 {[%emt 0:00:00]} c5 {[%emt 0:00:00]} 2. Nf3 {[%emt 0:00:00]} Nc6 {[%emt 0:00:00]} 3. Bb5 {[%emt 0:00:00]} g6 {[%emt 0:00:00] unterminated} 4. c3 {[%emt 0:00:26]} Bg7 {[%emt 0:00:34]} 5. O-O {[%emt 0:00:26] unterminated} Nf6 {[%emt 0:01:09] unterminated} 6. Re1 {[%emt 0:05:19]} O-O {[%emt 0:00:55] unterminated} 7. d4 {[%emt 0:01:26] unterminated} cxd4 {[%emt 0:01:50]} 8. cxd4 {[%emt 0:00:27] unterminated} d5 {[%emt 0:08:10] unterminated} 9. e5 {[%emt 0:02:34] unterminated} Ne8 {[%emt 0:01:16] unterminated} 10. Bxc6 {[%emt 0:03:35]} bxc6 {[%emt 0:00:18] unterminated} 11. Qc2 {[%emt 0:00:42] unterminated} Qb6 {[%emt 0:02:01] unterminated} 12. Bf4 {[%emt 0:09:49] unterminated} Nc7 {[%emt 0:06:42] unterminated} 13. Nc3 {[%emt 0:08:31] unterminated} Bf5 {[%emt 0:09:17]} 14. Qd2 {[%emt 0:00:32]} Ne6 {[%emt 0:00:34] unterminated} 15. Bg3 {[%emt 0:01:51] unterminated} a5 $11 {[%emt 0:14:00]} 16. b3 {[%emt 0:21:13]} Rfd8 {[%emt 0:09:29]} 17. Rac1 {[%emt 0:05:04]} Rac8 {[%emt 0:02:25]} 18. Na4 {[%emt 0:01:50]} Qb4 {[%emt 0:03:04]} 19. Qxb4 {[%emt 0:00:42]} axb4 {[%emt 0:00:08]} 20. Nc5 {[%emt 0:00:35]} Bh6 {[%emt 0:01:51]} 21. Nxe6 {[%emt 0:02:29]} Bxe6 {[%emt 0:00:59]} 22. Rc5 {[%emt 0:01:07]} Bd7 {[%emt 0:08:28]} 23. Bh4 {[%emt 0:01:11]} Bf8 {[%emt 0:05:08]} 24. Re2 {[%emt 0:04:20]} Re8 {[%emt 0:02:04]} 25. Ne1 {[%emt 0:01:18]} e6 {[%emt 0:01:09]} 26. Rc1 {[%emt 0:07:42]} c5 {[%emt 0:02:39]} 27. dxc5 {[%emt 0:00:17]} Rxc5 {[%emt 0:02:43]} 28. Rec2 {[%emt 0:03:11]} Rec8 {[%emt 0:02:07]} 29. Bg5 {[%emt 0:00:30]} Rxc2 {[%emt 0:05:51]} 30. Rxc2 {[%emt 0:00:01]} Ra8 {[%emt 0:00:37]} 31. f3 {[%emt 0:02:39]} Bb5 {[%emt 0:03:58]} 32. Kf2 {[%emt 0:00:07]} d4 {[%emt 0:03:49]} 33. Bd2 {[%emt 0:10:14]} d3 {[%emt 0:02:35]} 34. Rb2 {[%emt 0:00:04]} Rd8 {[%emt 0:00:27]} 35. f4 {[%emt 0:02:18]} Be7 {[%emt 0:00:39]} 36. Nf3 {[%emt 0:00:42]} f6 {[%emt 0:00:26]} 37. Be3 {[%emt 0:01:03]} Rc8 {[%emt 0:00:35]} 38. Nd4 {[%emt 0:01:46]} Ba6 {[%emt 0:00:27]} 39. Nxe6 {[%emt 0:00:58]} fxe5 {[%emt 0:00:32]} 40. fxe5 {[%emt 0:00:41]} Rc6 {[%emt 0:00:33]} 41. Nf4 {[%emt 0:09:28]} Rc8 {[%emt 0:08:18]} 42. Nd5 {[%emt 0:07:21]} Bf8 {[%emt 0:06:49]} 43. Rd2 {[%emt 0:07:10]} Kf7 {[%emt 0:02:02]} 44. Nb6 {[%emt 0:05:55] normal} Rc6 {[%emt 0:01:51] normal} 45. Nc4 {[%emt 0:02:59] normal} 1/2-1/2

[Event "DVM U20 2019"]
[Site "Braunschweig"]
[Date "2019.12.30"]
[Round "7"]
[White "Waffenschmidt, Lars"]
[Black "Poghosyan, Tigran"]
[Result "0-1"]
[ECO "B22"]
[WhiteElo "1885"]
[BlackElo "2302"]
[Annotator "ChessBase"]
[PlyCount "20"]
[EventDate "2019.12.27"]
[EventType "team-tourn"]
[EventRounds "7"]
[EventCountry "GER"]
[SourceTitle "playchess.com"]
[Source "ChessBase"]
[SourceQuality "1"]
[WhiteTeam "SK Bebenhausen"]
[BlackTeam "Lübecker SV"]
[TimeControl "40/5400+30:1800+30"]

1. e4 {[%emt 0:00:00]} c5 {[%emt 0:00:00]} 2. c3 {[%emt 0:00:00]} d5 {[%emt 0:00:00]} 3. exd5 {[%emt 0:00:05]} Qxd5 {[%emt 0:00:00]} 4. d4 {[%emt 0:00:15]} Nc6 {[%emt 0:00:00]} 5. Nf3 {[%emt 0:00:16]} Bf5 {[%emt 0:00:01]} 6. Be3 {[%emt 0:00:55]} Nf6 {[%emt 0:01:02]} 7. Na3 {[%emt 0:01:57]} e6 {[%emt 0:08:50]} 8. Qa4 {[%emt 0:04:04]} cxd4 9. Nb5 {[%emt 0:22:24]} Qd7 {[%emt 0:14:16]} 10. Nbxd4 {[%emt 0:02:35]} Bd6 {normal} 0-1

[Event "DVM U20 2019"]
[Site "Braunschweig"]
[Date "2019.12.30"]
[Round "7"]
[White "Schamschurko, Andre"]
[Black "Biastoch, Bennet"]
[Result "1/2-1/2"]
[ECO "B24"]
[WhiteElo "1868"]
[BlackElo "2242"]
[Annotator "RC"]
[PlyCount "29"]
[EventDate "2019.12.27"]
[EventType "team-tourn"]
[EventRounds "7"]
[EventCountry "GER"]
[SourceTitle "playchess.com"]
[Source "ChessBase"]
[SourceQuality "1"]
[WhiteTeam "USV TU Dresden"]
[BlackTeam "SG Aufbau Elbe Magdeburg"]
[TimeControl "40/5400+30:1800+30"]

1. e4 {[%emt 0:00:00]} c5 {[%emt 0:00:00]} 2. Nc3 {[%emt 0:00:00]} Nc6 {[%emt 0:00:00]} 3. Bb5 {[%emt 0:00:00]} Nd4 {[%emt 0:00:13]} 4. Bc4 {[%emt 0:00:00]} a6 {[%emt 0:00:08]} 5. d3 {[%emt 0:00:20]} e6 {[%emt 0:05:01]} 6. Nge2 {[%emt 0:00:35]} b5 {[%emt 0:02:57]} 7. Bb3 {[%emt 0:00:45]} Nxb3 {[%emt 0:03:40]} 8. axb3 {[%emt 0:00:12]} Bb7 {[%emt 0:00:09]} 9. O-O {[%emt 0:03:16]} Nf6 {[%emt 0:01:41]} 10. f4 {[%emt 0:00:10]} d5 {[%emt 0:05:58]} 11. e5 {[%emt 0:04:24]} d4 {[%emt 0:01:46]} 12. exf6 {[%emt 0:03:41]} dxc3 {[%emt 0:00:07]} 13. f5 {[%emt 0:00:14]} Qxf6 {[%emt 0:20:47]} 14. fxe6 {[%emt 0:00:10]} cxb2 {[%emt 0:00:32]} 15. exf7+ {[%emt 0:00:05] normal} 1/2-1/2

[Event "DVM U20 2019"]
[Site "Braunschweig"]
[Date "2019.12.30"]
[Round "7"]
[White "Doepper, Anna Berenice"]
[Black "Vuckovic, Robert"]
[Result "1/2-1/2"]
[ECO "B22"]
[WhiteElo "1855"]
[BlackElo "1897"]
[Annotator "NA"]
[PlyCount "22"]
[EventDate "2019.12.27"]
[EventType "team-tourn"]
[EventRounds "7"]
[EventCountry "GER"]
[SourceTitle "playchess.com"]
[Source "ChessBase"]
[SourceQuality "1"]
[WhiteTeam "SF Essen-Katernberg"]
[BlackTeam "SF Augsburg"]
[TimeControl "40/5400+30:1800+30"]

1. e4 {[%emt 0:00:00]} c5 {[%emt 0:00:00]} 2. c3 {[%emt 0:00:00]} d5 {[%emt 0:00:39]} 3. exd5 {[%emt 0:00:00]} Qxd5 {[%emt 0:00:07]} 4. d4 g6 {[%emt 0:02:43]} 5. Nf3 {[%emt 0:00:00]} Bg7 {[%emt 0:00:10]} 6. Be3 {[%emt 0:00:00]} cxd4 {[%emt 0:02:14]} 7. Bxd4 {[%emt 0:00:46]} Nf6 {[%emt 0:12:16]} 8. Be2 {[%emt 0:01:08]} O-O {[%emt 0:01:47]} 9. Nbd2 {[%emt 0:01:39]} Nc6 {[%emt 0:25:52]} 10. Be3 Bf5 11. Nb3 {[%emt 0:12:25] unterminated} Rad8 $11 {[%emt 0:10:52] normal} 1/2-1/2

[Event "DVM U20 2019"]
[Site "Braunschweig"]
[Date "2019.12.30"]
[Round "7"]
[White "Düro, Liam"]
[Black "Verfuerth, Kevin"]
[Result "1/2-1/2"]
[ECO "D37"]
[WhiteElo "1841"]
[BlackElo "2038"]
[Annotator "NA RC"]
[PlyCount "42"]
[EventDate "2019.12.27"]
[EventType "team-tourn"]
[EventRounds "7"]
[EventCountry "GER"]
[SourceTitle "playchess.com"]
[Source "ChessBase"]
[SourceQuality "1"]
[WhiteTeam "SG Trier"]
[BlackTeam "SK Turm Kleve"]
[TimeControl "40/5400+30:1800+30"]

1. d4 {[%emt 0:00:00]} Nf6 {[%emt 0:00:00]} 2. c4 {[%emt 0:00:55]} e6 {[%emt 0:00:00]} 3. Nf3 {[%emt 0:00:08]} d5 {[%emt 0:00:00]} 4. Nc3 {[%emt 0:00:15]} Be7 {[%emt 0:00:00] unterminated} 5. Bf4 {[%emt 0:02:35] unterminated} O-O {[%emt 0:02:21]} 6. e3 {[%emt 0:01:07]} a6 {[%emt 0:01:42]} 7. Bd3 {[%emt 0:01:12]} dxc4 {[%emt 0:01:05]} 8. Bxc4 {[%emt 0:00:07]} b5 {[%emt 0:00:03]} 9. Bd3 {[%emt 0:00:15]} Bb7 {[%emt 0:00:07]} 10. O-O {[%emt 0:00:23]} c5 {[%emt 0:02:42]} 11. Qe2 {[%emt 0:11:08]} c4 {[%emt 0:02:49]} 12. Bc2 {[%emt 0:00:20]} Nd5 {[%emt 0:00:05]} 13. Nxd5 {[%emt 0:00:55] unterminated} exd5 {[%emt 0:00:46] unterminated} 14. Ne5 {[%emt 0:02:28] unterminated} Nc6 $11 {[%emt 0:03:06]} 15. Qh5 {[%emt 0:01:50]} g6 {[%emt 0:01:21]} 16. Nxg6 {[%emt 0:03:00]} fxg6 {[%emt 0:02:56]} 17. Bxg6 {[%emt 0:00:17]} hxg6 {[%emt 0:00:05]} 18. Qxg6+ {[%emt 0:00:08]} Kh8 {[%emt 0:00:03]} 19. Qh6+ {[%emt 0:06:58]} Kg8 {[%emt 0:00:01]} 20. Qg6+ {[%emt 0:00:02]} Kh8 {[%emt 0:00:16]} 21. Qh6+ {[%emt 0:00:04]} Kg8 {[%emt 0:00:01] normal} 1/2-1/2

[Event "DVM U20 2019"]
[Site "Braunschweig"]
[Date "2019.12.30"]
[Round "7"]
[White "Foo, Tzun Hong"]
[Black "Brockmeyer, Tobias"]
[Result "1/2-1/2"]
[ECO "C01"]
[WhiteElo "1829"]
[BlackElo "1902"]
[Annotator "NA"]
[PlyCount "84"]
[EventDate "2019.12.27"]
[EventType "team-tourn"]
[EventRounds "7"]
[EventCountry "GER"]
[SourceTitle "playchess.com"]
[Source "ChessBase"]
[SourceQuality "1"]
[WhiteTeam "Hamburger SK"]
[BlackTeam "SK Lehrte 1919"]
[TimeControl "40/5400+30:1800+30"]

1. e4 {[%emt 0:00:00]} e6 {[%emt 0:00:00]} 2. d4 {[%emt 0:00:00]} d5 {[%emt 0:00:00]} 3. exd5 {[%emt 0:00:00]} exd5 {[%emt 0:00:00]} 4. c4 {[%emt 0:00:00]} Bb4+ {[%emt 0:00:00]} 5. Nc3 {[%emt 0:00:07]} Nf6 {[%emt 0:00:01]} 6. Bd3 {[%emt 0:01:31] unterminated} Qe7+ {[%emt 0:00:47] unterminated} 7. Nge2 {[%emt 0:02:25] unterminated} O-O {[%emt 0:02:30]} 8. O-O {[%emt 0:02:19] unterminated} dxc4 {[%emt 0:03:13]} 9. Bxc4 {[%emt 0:00:10] unterminated} Nbd7 {[%emt 0:04:37] unterminated} 10. Ng3 {[%emt 0:12:23] unterminated} Nb6 {[%emt 0:03:47] unterminated} 11. Bd3 {[%emt 0:13:29] unterminated} c6 {[%emt 0:12:29] unterminated} 12. Bg5 {[%emt 0:13:43] unterminated} Qd6 $14 {[%emt 0:13:29]} 13. Nce4 {[%emt 0:10:31]} Nxe4 {[%emt 0:03:11]} 14. Nxe4 {[%emt 0:01:57]} Qd5 {[%emt 0:08:15]} 15. Qh5 {[%emt 0:06:08]} f5 {[%emt 0:02:05]} 16. Ng3 {[%emt 0:08:15]} Bd7 {[%emt 0:06:43]} 17. Qh4 {[%emt 0:10:59]} Rae8 {[%emt 0:03:24]} 18. a3 {[%emt 0:02:23]} Bd6 19. Rae1 {[%emt 0:03:32]} Kh8 {[%emt 0:11:00]} 20. Be7 {[%emt 0:01:46]} Bxe7 {[%emt 0:02:52]} 21. Rxe7 {[%emt 0:00:09]} Rxe7 {[%emt 0:01:15]} 22. Qxe7 {[%emt 0:00:08]} Qf7 {[%emt 0:04:58]} 23. Re1 {[%emt 0:02:20]} Qxe7 {[%emt 0:02:15]} 24. Rxe7 {[%emt 0:00:07]} g6 {[%emt 0:00:19]} 25. Ne2 {[%emt 0:04:49]} Re8 {[%emt 0:00:51]} 26. Rxe8+ {[%emt 0:00:06]} Bxe8 {[%emt 0:00:03]} 27. Nc3 {[%emt 0:01:59]} Kg7 {[%emt 0:03:07]} 28. Kf1 {[%emt 0:00:56]} Kf6 {[%emt 0:01:29]} 29. Ke2 {[%emt 0:00:31]} Bf7 {[%emt 0:01:32]} 30. Kd2 {[%emt 0:01:14]} Ke7 {[%emt 0:06:36]} 31. g3 {[%emt 0:00:25]} Bc4 {[%emt 0:01:35]} 32. Bc2 {[%emt 0:00:35]} Kd6 {[%emt 0:00:03]} 33. b3 {[%emt 0:00:32]} Bd5 {[%emt 0:01:45]} 34. Nxd5 {[%emt 0:00:46]} Nxd5 {[%emt 0:00:06]} 35. b4 {[%emt 0:00:41]} Nf6 {[%emt 0:00:28]} 36. f3 {[%emt 0:00:28]} Nh5 {[%emt 0:00:59]} 37. Ke3 {[%emt 0:00:26]} Ng7 {[%emt 0:00:43]} 38. h4 {[%emt 0:00:32]} Ne6 {[%emt 0:01:05]} 39. Bb3 {[%emt 0:00:21]} h6 {[%emt 0:01:06]} 40. Bc4 {[%emt 0:00:31]} Ke7 {[%emt 0:00:43]} 41. Bd3 {[%emt 0:03:24]} Nc7 {[%emt 0:06:26] normal} 42. h5 {[%emt 0:09:33] normal} Nd5+ {[%emt 0:02:39] normal} 1/2-1/2

[Event "DVM U20 2019"]
[Site "Braunschweig"]
[Date "2019.12.30"]
[Round "7"]
[White "Klenk, Sofie"]
[Black "Celik, Cem"]
[Result "1-0"]
[ECO "C40"]
[WhiteElo "1812"]
[BlackElo "1767"]
[Annotator "NA"]
[PlyCount "23"]
[EventDate "2019.12.27"]
[EventType "team-tourn"]
[EventRounds "7"]
[EventCountry "GER"]
[SourceTitle "playchess.com"]
[Source "ChessBase"]
[SourceQuality "1"]
[WhiteTeam "SF Augsburg"]
[BlackTeam "SF Essen-Katernberg"]
[TimeControl "40/5400+30:1800+30"]

1. e4 {[%emt 0:00:00]} e5 {[%emt 0:00:00]} 2. Nf3 {[%emt 0:00:00]} f5 {[%emt 0:00:00]} 3. Nc3 {[%emt 0:00:42]} Nc6 {[%emt 0:00:17]} 4. exf5 {[%emt 0:00:16]} Nf6 {[%emt 0:01:18]} 5. d4 {[%emt 0:01:37]} e4 {[%emt 0:01:46]} 6. Ne5 {[%emt 0:00:38]} d6 {[%emt 0:00:31]} 7. Nxc6 {[%emt 0:02:00]} bxc6 {[%emt 0:00:01]} 8. d5 {[%emt 0:14:56]} cxd5 {[%emt 0:07:48]} 9. Bb5+ {[%emt 0:03:18]} Bd7 10. Bxd7+ {[%emt 0:00:51]} Qxd7 {[%emt 0:00:36]} 11. Nxd5 {[%emt 0:00:35]} Qxf5 {[%emt 0:01:20]} 12. Nxc7+ {[%emt 0:01:18] normal} 1-0

[Event "DVM U20 2019"]
[Site "Braunschweig"]
[Date "2019.12.30"]
[Round "7"]
[White "Brüll, Elias"]
[Black "Seref, Erdogan"]
[Result "1/2-1/2"]
[ECO "C91"]
[WhiteElo "1797"]
[BlackElo "2003"]
[Annotator "NA"]
[PlyCount "42"]
[EventDate "2019.12.27"]
[EventType "team-tourn"]
[EventRounds "7"]
[EventCountry "GER"]
[SourceTitle "playchess.com"]
[Source "ChessBase"]
[SourceQuality "1"]
[WhiteTeam "SC Bavaria Regensburg"]
[BlackTeam "SF Brackel"]
[TimeControl "40/5400+30:1800+30"]

1. e4 {[%emt 0:00:00]} e5 {[%emt 0:00:00]} 2. Nf3 {[%emt 0:00:00]} Nc6 {[%emt 0:00:00]} 3. Bb5 {[%emt 0:00:00]} a6 {[%emt 0:00:00]} 4. Ba4 {[%emt 0:00:00]} Nf6 {[%emt 0:00:06]} 5. O-O {[%emt 0:00:00]} Be7 {[%emt 0:00:17]} 6. Re1 {[%emt 0:00:00]} b5 {[%emt 0:00:06]} 7. Bb3 {[%emt 0:00:02]} O-O {[%emt 0:00:05]} 8. d4 {[%emt 0:00:10]} d6 {[%emt 0:01:28]} 9. c3 {[%emt 0:00:05]} Bg4 {[%emt 0:00:06]} 10. Be3 {[%emt 0:00:04]} exd4 {[%emt 0:08:03]} 11. cxd4 {[%emt 0:00:08]} Na5 {[%emt 0:00:10]} 12. Bc2 {[%emt 0:00:17]} Nc4 {[%emt 0:00:07]} 13. Bc1 {[%emt 0:00:09]} c5 {[%emt 0:00:39]} 14. b3 {[%emt 0:00:21] unterminated} Nb6 {[%emt 0:00:15] unterminated} 15. Nbd2 {[%emt 0:01:15] unterminated} cxd4 {[%emt 0:09:06]} 16. h3 {[%emt 0:03:27] unterminated} Bh5 {[%emt 0:10:41]} 17. Bb2 {[%emt 0:00:31] unterminated} Nfd7 $14 {[%emt 0:05:58]} 18. g4 {[%emt 0:06:30]} Bg6 {[%emt 0:00:37]} 19. Nxd4 {[%emt 0:00:18]} Bg5 {[%emt 0:02:54]} 20. N2f3 {[%emt 0:06:24]} Bf4 {[%emt 0:01:14]} 21. Nf5 {[%emt 0:32:23]} Ne5 {[%emt 0:04:30] normal Übertragungsfehler, weitere Züge fehlen} 1/2-1/2

[Event "DVM U20 2019"]
[Site "Braunschweig"]
[Date "2019.12.30"]
[Round "7"]
[White "Mundt, Alexandra"]
[Black "Ortner, Jonas Ruben"]
[Result "0-1"]
[ECO "B27"]
[WhiteElo "1775"]
[BlackElo "1718"]
[Annotator "NA"]
[PlyCount "22"]
[EventDate "2019.12.27"]
[EventType "team-tourn"]
[EventRounds "7"]
[EventCountry "GER"]
[SourceTitle "playchess.com"]
[Source "ChessBase"]
[SourceQuality "1"]
[WhiteTeam "Lübecker SV"]
[BlackTeam "SK Bebenhausen"]
[TimeControl "40/5400+30:1800+30"]

1. e4 {[%emt 0:00:00]} c5 {[%emt 0:00:00]} 2. Nf3 {[%emt 0:00:00]} g6 {[%emt 0:00:10]} 3. d4 {[%emt 0:00:17]} cxd4 {[%emt 0:00:06]} 4. Nxd4 {[%emt 0:00:35]} Nc6 {[%emt 0:00:07]} 5. Be2 {[%emt 0:04:34]} Bg7 {[%emt 0:04:30]} 6. Nb3 {[%emt 0:01:57]} Nf6 {[%emt 0:01:01]} 7. Nc3 {[%emt 0:00:23]} O-O {[%emt 0:01:13]} 8. Be3 {[%emt 0:02:25]} d6 {[%emt 0:00:28]} 9. Qd2 {[%emt 0:16:41]} Rb8 10. f3 {[%emt 0:00:30]} Be6 11. Nd5 Qc8 {[%emt 0:37:08] normal} 0-1

[Event "DVM U20 2019"]
[Site "Braunschweig"]
[Date "2019.12.30"]
[Round "7"]
[White "Hoenselaar, Dennis"]
[Black "Roos, Elias"]
[Result "1/2-1/2"]
[ECO "A36"]
[WhiteElo "1769"]
[BlackElo "1812"]
[Annotator "NA"]
[PlyCount "41"]
[EventDate "2019.12.27"]
[EventType "team-tourn"]
[EventRounds "7"]
[EventCountry "GER"]
[SourceTitle "playchess.com"]
[Source "ChessBase"]
[SourceQuality "1"]
[WhiteTeam "SK Turm Kleve"]
[BlackTeam "SG Trier"]
[TimeControl "40/5400+30:1800+30"]

1. c4 {[%emt 0:00:00]} c5 2. g3 {[%emt 0:00:00]} Nc6 {[%emt 0:00:00]} 3. Bg2 {[%emt 0:00:00]} g6 {[%emt 0:00:00]} 4. Nc3 {[%emt 0:00:00]} Bg7 {[%emt 0:00:00]} 5. d3 {[%emt 0:00:14]} e5 {[%emt 0:00:18]} 6. e4 {[%emt 0:00:28]} Nge7 {[%emt 0:00:06]} 7. Nge2 {[%emt 0:00:09]} O-O {[%emt 0:00:13]} 8. O-O {[%emt 0:00:06]} d6 {[%emt 0:00:03] unterminated} 9. f4 {[%emt 0:00:46]} f5 {[%emt 0:00:43]} 10. Be3 {[%emt 0:00:44] unterminated unterminated. A36: Symmetrical English vs ...g6: 4 Bg2 Bg7} Rb8 {[%emt 0:02:02] unterminated} (10... Nd4 11. Qd2 Be6 12. b3 Rb8 13. Rae1 Qd7 14. Nd5 b5 15. Bxd4 cxd4 16. Nxe7+ Qxe7 17. exf5 gxf5 18. Nxd4 {0-1 (56) Ivanchuk,V (2738)-Giri,A (2771) Leuven 2017}) 11. Rb1 {[%emt 0:04:31] unterminated} a6 {[%emt 0:09:40]} 12. a3 $146 {[%emt 0:00:06] unterminated} ({Predecessor:} 12. Qd2 b5 13. b3 Qc7 14. h3 Nd4 15. Kh2 Nec6 16. Bxd4 Nxd4 17. Nxd4 cxd4 {1-0 (29) Larter,N (1830)-Moran,H (1522) Dublin 2019}) 12... b5 {[%emt 0:05:09]} 13. cxb5 {[%emt 0:00:36]} axb5 {[%emt 0:00:09] unterminated} 14. b4 {[%emt 0:00:43] unterminated} Nd4 {[%emt 0:05:45] unterminated} 15. Qd2 {[%emt 0:11:20] unterminated} Be6 {[%emt 0:09:50] unterminated} 16. bxc5 {[%emt 0:02:03] unterminated} dxc5 {[%emt 0:03:15] unterminated} 17. Bxd4 {[%emt 0:00:39]} cxd4 {[%emt 0:00:05]} 18. Nxb5 {[%emt 0:00:39] unterminated} fxe4 {[%emt 0:03:48] unterminated} 19. Bxe4 {[%emt 0:02:59] unterminated} Nf5 $14 {[%emt 0:10:25]} 20. a4 {[%emt 0:09:05]} Bd5 {[%emt 0:12:36]} 21. fxe5 {[%emt 0:15:32] normal} 1/2-1/2

[Event "DVM U20 2019"]
[Site "Braunschweig"]
[Date "2019.12.30"]
[Round "7"]
[White "Kirschweng, Luca"]
[Black "Habersetzer, Elyse"]
[Result "1-0"]
[ECO "C02"]
[WhiteElo "1718"]
[BlackElo "1650"]
[Annotator "NA"]
[PlyCount "70"]
[EventDate "2019.12.27"]
[EventType "team-tourn"]
[EventRounds "7"]
[EventCountry "GER"]
[SourceTitle "playchess.com"]
[Source "ChessBase"]
[SourceQuality "1"]
[WhiteTeam "SG Trier"]
[BlackTeam "SK Turm Kleve"]
[TimeControl "40/5400+30:1800+30"]

1. e4 {[%emt 0:00:00]} e6 {[%emt 0:00:00]} 2. d4 {[%emt 0:00:00]} d5 {[%emt 0:00:00]} 3. e5 {[%emt 0:00:00]} c5 {[%emt 0:00:00]} 4. Nf3 {[%emt 0:00:00]} Nc6 {[%emt 0:00:00]} 5. Bd3 {[%emt 0:00:00]} Bd7 {[%emt 0:00:25]} 6. a3 {[%emt 0:00:26]} cxd4 {[%emt 0:04:09]} 7. Bf4 {[%emt 0:00:31]} Qb6 {[%emt 0:05:38]} 8. b4 {[%emt 0:00:09]} a6 {[%emt 0:00:18]} 9. Nbd2 {[%emt 0:00:32]} Rc8 {[%emt 0:03:43]} 10. Nb3 {[%emt 0:01:22]} Qc7 {[%emt 0:10:47]} 11. O-O {[%emt 0:03:56]} Nge7 {[%emt 0:12:34]} 12. Re1 {[%emt 0:01:21]} Ng6 {[%emt 0:06:13]} 13. Bg3 {[%emt 0:00:18]} Be7 {[%emt 0:03:16]} 14. h4 {[%emt 0:05:00]} Qd8 {[%emt 0:13:13]} 15. h5 {[%emt 0:01:01]} Nh4 {[%emt 0:01:55]} 16. Nfxd4 {[%emt 0:03:45]} g6 {[%emt 0:04:48]} 17. Bxh4 {[%emt 0:08:34]} Bxh4 {[%emt 0:00:14]} 18. Qg4 {[%emt 0:01:10]} Qg5 {[%emt 0:03:18]} 19. Qxg5 {[%emt 0:11:11]} Bxg5 {[%emt 0:00:07]} 20. hxg6 {[%emt 0:00:46]} hxg6 {[%emt 0:01:54]} 21. Nf3 {[%emt 0:01:20]} Bh6 {[%emt 0:05:33]} 22. Nc5 {[%emt 0:01:13]} Rc7 {[%emt 0:04:12]} 23. Rab1 {[%emt 0:01:36]} Nb8 {[%emt 0:02:08]} 24. Nd4 {[%emt 0:01:41]} b5 {[%emt 0:02:17]} 25. Nxa6 {[%emt 0:03:47]} Rc8 {[%emt 0:01:16]} 26. Nc5 {[%emt 0:03:07]} Bf8 {[%emt 0:06:40]} 27. Nxd7 {[%emt 0:00:51]} Kxd7 {[%emt 0:00:36]} 28. Bxb5+ {[%emt 0:00:43]} Kc7 {[%emt 0:00:19]} 29. f4 {[%emt 0:01:32]} Kb6 {[%emt 0:00:45]} 30. Rec1 {[%emt 0:01:04]} Rc3 {[%emt 0:01:20]} 31. Rb3 {[%emt 0:01:22]} Rc7 {[%emt 0:00:24]} 32. Bd3 {[%emt 0:00:40]} Na6 {[%emt 0:01:35]} 33. c4 {[%emt 0:02:34]} Be7 {[%emt 0:03:31]} 34. c5+ {[%emt 0:00:13]} Kb7 {[%emt 0:00:36]} 35. Nb5 {[%emt 0:00:39] normal} Nxc5 {[%emt 0:02:19] normal} 1-0